Cogmind - Beta 16 @@@ ROGUE MODE // 2025.10.23 @ 16:40:02 Player: ChromeKnight Result: Destroyed by BJ-GOR(R) with Subdweller Laser Performance ------------- Evolutions (0) 0 Regions Visited (3) 600 Robots Destroyed (18) 90 Value Destroyed (435) 435 Prototype IDs (0) 0 Alien Tech Used (0) 0 Bonus (0) 0 TOTAL SCORE: 1125 Bonus ------- None Cogmind --------- Core Integrity 0/250 Matter 297/300 Energy 200/200 System Corruption 0% Temperature Cool (6) Movement Core (600) Ox11 Location -10/Subcaves Parts ------- > --- POWER (1) -------- Subdweller Power Source > --- PROPULSION (2) --- (None) > --- UTILITY (2) ------ Large Storage Unit Makeshift Light Armor Plating > --- WEAPON (2) ------- Subdweller Laser Assault Rifle > --- INVENTORY (15) --- Small Storage Unit Medium Storage Unit Scrap Shield Hacking Suite Hammer Peak State ------------ > --- POWER ------------ Subdweller Power Source > --- PROPULSION ------- Spiked Treads Subdweller Monowheel > --- UTILITY ---------- Large Storage Unit Makeshift Light Armor Plating > --- WEAPON ----------- Subdweller Laser Assault Rifle > --- INVENTORY -------- Small Storage Unit Medium Storage Unit Scrap Shield Hacking Suite Hammer [Rating: 15] Favorites ----------- Power Ion Engine Engine Ion Engine Propulsion Light Treads Treads Light Treads Wheel Subdweller Monowheel Utility Large Storage Unit Storage Large Storage Unit Processor Visual Processing Unit Protection Makeshift Light Armor Plating Weapon Assault Rifle Energy Gun EM Pulse Gun Ballistic Gun Assault Rifle Impact Weapon Hammer Build | -11 -10 -10 -10 ------- Run | Yrd Mat Min Sub Slots Evolved . | . . . . Power . | . . . . Propulsion . | . . . . Utility . | . . . . Weapon . | . . . . Parts Attached 17 | 7 3 . 7 Power 2 | 1 . . 1 Engine 2 | 1 . . 1 Core . | . . . . Reactor . | . . . . Propulsion 4 | 2 . . 2 Treads 3 | 2 . . 1 Leg . | . . . . Wheel 1 | . . . 1 Hover . | . . . . Flight . | . . . . Utility 6 | 1 3 . 2 Device . | . . . . Storage 3 | 1 2 . . Processor 2 | . 1 . 1 Hackware . | . . . . Protection 1 | . . . 1 Artifact . | . . . . Weapon 5 | 3 . . 2 Energy Gun 2 | 1 . . 1 Energy Cannon . | . . . . Ballistic Gun 2 | 2 . . . Ballistic Cannon . | . . . . Launcher . | . . . . Special Weapon . | . . . . Impact Weapon 1 | . . . 1 Slashing Weapon . | . . . . Piercing Weapon . | . . . . Special Melee Weapon . | . . . . Unidentified Prototypes . | . . . . Parts Lost 8 | . . . 8 Power 1 | . . . 1 Propulsion 4 | . . . 4 Utility 1 | . . . 1 Weapon 2 | . . . 2 Highest Loss Streak 2 | . . . 2 To Critical Strikes . | . . . . Average Backups 5 | . 3 6 5 Power . | . . . . Propulsion . | . . . . Utility 3 | . 2 4 3 Weapon 1 | . 1 2 2 Tool/Special . | . . . . Unused Backups 2 | . . . 2 Power . | . . . . Propulsion . | . . . . Utility 2 | . . . 2 Weapon . | . . . . Tool/Special . | . . . . Average Slot Usage (%) 91 | . 97 100 83 Engine 13 | . 14 14 13 Treads 24 | . 28 28 21 Storage 14 | . 14 14 14 Processor 7 | . 12 14 . Protection 3 | . . . 8 Energy Gun 11 | . 14 14 8 Ballistic Gun 11 | . 14 14 8 Impact Weapon 2 | . . . 5 Peak Build Rating 15 | 6 8 8 15 Average Rating 8 | 4 7 8 9 On Entrance 5 | . 6 8 8 Avg Prop Armor Cover (%) 13 | . . . 13 Naked Turns . | . . . . Heaviest Build 35 | 14 29 29 35 Greatest Support 40 | 40 40 40 40 Greatest Overweight (x) 1 | . . . 1 Average Overweight (x) . | . . . . Largest Inventory Capacity 15 | 8 15 15 15 Average Capacity 13 | 6 10 15 15 Most Carried 8 | 1 6 6 8 Average Carried 5 | . 3 6 6 Final Capacity 15 | 8 15 15 15 Final Carried 6 | 1 6 6 6 Class Distribution -------------------- 100% | Mutant Dominant Class ---------------- Mutant | -10/Materials Mutant | -10/Mines Mutant | -10/Subcaves Resources | -11 -10 -10 -10 ----------- Run | Yrd Mat Min Sub Matter Collected 548 | 178 183 16 171 Remotely . | . . . . Salvage Created 505 | . 183 . 322 Parts 33 | . 12 . 21 Haulers Intercepted . | . . . . Recyclers Shooed . | . . . . Parts Field Recycled . | . . . . Retrieved Matter . | . . . . Parts Self-Destructed 9 | . . . 9 Prevented 2 | . . . 2 Parts Restored . | . . . . Kills | -11 -10 -10 -10 ------- Run | Yrd Mat Min Sub Combat Hostiles Destroyed 14 | . 5 . 9 Melee 2 | . . . 2 Guns 11 | . 5 . 6 Classes Destroyed 7 | . 4 . 3 Operator 1 | . 1 . . Turret 2 | . . . 2 Watcher 1 | . 1 . . Swarmer 7 | . 3 . 4 Grunt 2 | . 2 . . Sentry 1 | . . . 1 Subdweller 4 | . . . 4 Best Kill Streak 4 | . 3 . 4 Combat Bots Only 4 | . 3 . 4 Max Kills in Single Turn 1 | . 1 . 1 Gunslinging . | . . . . Exploded . | . . . . Melee 1 | . . . 1 Uniques/NPCs Destroyed . | . . . . Combat | -11 -10 -10 -10 -------- Run | Yrd Mat Min Sub Hostile Shots Fired 148 | . 28 . 120 Missed 43 | . 6 . 37 Hits 105 | . 22 . 83 Projectile 105 | . 22 . 83 Critical Strikes 4 | . . . 4 Damage Taken 1392 | . 248 . 1144 Core 255 | . 11 . 244 Absorbed by Shields . | . . . . Core Remaining (%) 100 | 100 . . . Volleys Fired 55 | . 19 . 36 Largest 2 | . 2 . 2 Hottest 80 | . 60 . 80 Shots Fired 108 | . 38 . 70 Gun 108 | . 38 . 70 Cannon . | . . . . Launcher . | . . . . Special . | . . . . Kinetic 60 | . 19 . 41 Thermal 13 | . . . 13 Explosive . | . . . . Electromagnetic 35 | . 19 . 16 Robot Hit Streak 10 | . 5 . 10 Robot Miss Streak 2 | . 2 . 2 Penetration Max . | . . . . Secondary Targets 2 | . 2 . . Max Gunslinging Chain 1 | . 1 . . Shots Hit Robots 91 | . 26 . 65 Core Hits 26 | . 9 . 17 Critical Kills 1 | . . . 1 Critical Parts Destroyed . | . . . . Critical Strikes 2 | . . . 2 Smash 2 | . . . 2 Melee Attacks 20 | . . . 20 Impact 20 | . . . 20 Slashing . | . . . . Piercing . | . . . . Sneak Attacks . | . . . . Combat Hostiles . | . . . . Follow-up Attacks . | . . . . Damage Inflicted 1387 | . 365 . 1022 Guns 982 | . 330 . 652 Cannons . | . . . . Explosions 35 | . 35 . . Melee 370 | . . . 370 Ramming . | . . . . Kinetic 479 | . 151 . 328 Thermal 238 | . 35 . 203 Explosive . | . . . . Electromagnetic 300 | . 179 . 121 Impact 370 | . . . 370 Slashing . | . . . . Piercing . | . . . . Highest Corruption . | . . . . Average Corruption . | . . . . Corruption Purged . | . . . . Corruption Blocked . | . . . . Overload Shots . | . . . . Overflow Damage 35 | . . . 35 Projectiles . | . . . . Explosions . | . . . . Melee 35 | . . . 35 Knockbacks 1 | . . . 1 Impact 1 | . . . 1 Kinetic . | . . . . Secondary . | . . . . Self-Inflicted Damage 36 | . 36 . . Shots 1 | . 1 . . Rammed . | . . . . Targets Rammed . | . . . . Kicked . | . . . . Crushed . | . . . . Highest Temperature 66 | . 66 . 3 Average Temperature 29 | . 34 . 3 Received Heat Transfer 450 | . 72 . 378 Siege Activations . | . . . . Martial Activations . | . . . . Shielding Activations . | . . . . Robots Disrupted . | . . . . Combat Hostiles . | . . . . Robots Corrupted 1 | . . . 1 Combat Hostiles 1 | . . . 1 Parts Fried 7 | . 2 . 5 Impact Corruptions 3 | . . . 3 Robots Melted . | . . . . Combat Hostiles . | . . . . Parts Melted 1 | . . . 1 Heat Transferred 350 | . 100 . 250 Parts Sabotaged . | . . . . Parts Stolen . | . . . . Parts Stripped . | . . . . Power Chain Reactions 1 | . 1 . . Alert | -11 -10 -10 -10 ------- Run | Yrd Mat Min Sub Maximum Alert Level . | . . . . Low Security (%) 100 | 100 100 100 . Level 1 . | . . . . Level 2 . | . . . . Level 3 . | . . . . Level 4 . | . . . . Level 5 . | . . . . High Security . | . . . . Max Security . | . . . . Peak Influence 60 | . 60 5 . Initial 5 | . . 5 . Average 5 | . 15 . . Influence Increases 351 | . 136 . 215 Destroy 0b10 Robot/C 240 | . 100 . 140 Destroy 0b10 Robot/NC 10 | . 10 . . Destroy Leader 22 | . 22 . . Destroy Structure 4 | . 4 . . Lose Combat Pursuer 75 | . . . 75 Influence Decreases 250 | . 122 14 114 Entered New Map 9 | . . 9 . Time Decay 201 | . 122 5 74 Lost Part 40 | . . . 40 Squads Dispatched 1 | . 1 . . Investigation . | . . . . Extermination . | . . . . Reinforcement 1 | . 1 . . Assault . | . . . . Garrison . | . . . . Intercept . | . . . . Searches Triggered . | . . . . Construction Impeded . | . . . . Haulers Reinforced . | . . . . Active Scanning Responses . | . . . . Cargo Convoy Interrupts . | . . . . Stealth | -11 -10 -10 -10 --------- Run | Yrd Mat Min Sub Distress Signals 1 | . . 1 . Communications Jammed . | . . . . Distress Signals . | . . . . Times Spotted 21 | . 7 . 14 Peak Tracking Total 4 | . 3 . 4 Tactical Retreats 4 | . . . 4 Traps | -11 -10 -10 -10 ------- Run | Yrd Mat Min Sub Traps Triggered 1 | . 1 . . Indirectly . | . . . . Trap Hack Attempts . | . . . . Triggered . | . . . . Disarmed . | . . . . Reprogrammed . | . . . . Reused . | . . . . Traps Extracted . | . . . . Installed . | . . . . Triggered . | . . . . Machines | -11 -10 -10 -10 ---------- Run | Yrd Mat Min Sub Machines Disabled . | . . . . Max in Single Turn . | . . . . Machines Repaired . | . . . . Machines Dismantled . | . . . . Machines Sabotaged . | . . . . Overloaded Fab Kills . | . . . . Hacking | -11 -10 -10 -10 --------- Run | Yrd Mat Min Sub Machines Accessed . | . . . . Terminals . | . . . . Fabricators . | . . . . Repair Stations . | . . . . Recycling Units . | . . . . Scanalyzers . | . . . . Garrison Access . | . . . . Total Hacks . | . . . . Successful . | . . . . Failed . | . . . . Catastrophic . | . . . . Database Lockouts . | . . . . Manual . | . . . . Terminals . | . . . . Fabricators . | . . . . Repair Stations . | . . . . Recycling Units . | . . . . Scanalyzers . | . . . . Garrison Access . | . . . . Terminal Hacks . | . . . . Fabricator Hacks . | . . . . Repair Station Hacks . | . . . . Recycling Unit Hacks . | . . . . Scanalyzer . | . . . . Garrison Access Hacks . | . . . . Unauthorized Hacks . | . . . . Terminals . | . . . . Fabricators . | . . . . Repair Stations . | . . . . Recycling Units . | . . . . Scanalyzers . | . . . . Garrison Access . | . . . . Data Cores Recovered . | . . . . Used . | . . . . Hacking Detections . | . . . . Full Trace Events . | . . . . Feedback Events . | . . . . Feedback Blocked . | . . . . Robot Schematics Acquired . | . . . . Robots Built . | . . . . Authchips . | . . . . Time . | . . . . Total Robot Build Rating . | . . . . Part Schematics Acquired . | . . . . Parts Built . | . . . . Authchips . | . . . . Time . | . . . . Total Part Build Rating . | . . . . Part Studies Acquired . | . . . . Parts Repaired . | . . . . Time . | . . . . Parts Recycled . | . . . . Recycled Matter . | . . . . Retrieved Matter . | . . . . Retrieved Components . | . . . . Parts Scanalyzed . | . . . . Part Schematics Acquired . | . . . . Parts Damaged . | . . . . Bothacking | -11 -10 -10 -10 ------------ Run | Yrd Mat Min Sub Used RIF Installer . | . . . . Robots Hacked . | . . . . Non-combat . | . . . . Combat . | . . . . Robot Hacks Applied . | . . . . Relay Couplers Released . | . . . . Fabnet Peak Effective % . | . . . . Robots Rewired . | . . . . Allies Hacked . | . . . . Hacks Repelled . | . . . . Allies | -11 -10 -10 -10 -------- Run | Yrd Mat Min Sub Total Allies . | . . . . Largest Group . | . . . . Highest-Rated Group . | . . . . Highest-Rated Ally . | . . . . Total Orders . | . . . . Ally Attacks . | . . . . Total Damage . | . . . . Kills . | . . . . Allies Corrupted . | . . . . Allies Melted . | . . . . Intel | -11 -10 -10 -10 ------- Run | Yrd Mat Min Sub Active Infowar (turns) 1241 | . 441 795 5 Optics 1241 | . 441 795 5 Robot Analysis Total . | . . . . Derelict Logs Recovered . | . . . . Drone Launches . | . . . . Drone Recoveries . | . . . . Exploration | -11 -10 -10 -10 ------------- Run | Yrd Mat Min Sub Turns Passed 2526 | 75 498 795 1158 Spaces Moved 873 | 44 209 97 523 Core 5 | 5 . . . Treads 798 | 39 209 97 453 Legs . | . . . . Wheels 70 | . . . 70 Hover . | . . . . Flight . | . . . . Fastest Speed 50 | 50 160 160 120 Average Speed 172 | 147 160 160 181 Slowest Speed 260 | 160 160 160 260 Overloaded Moves . | . . . . Propulsion Burnouts . | . . . . Robots Hopped . | . . . . Potential Cave-ins . | . . . . Cave-ins Triggered . | . . . . Exploration Rate (%) 23 | 4 43 9 38 Regions Visited 3 Branch Regions 2 Pre-discovered Areas . | . . . . Known Exits Taken . | . . . . Unknown Exits Taken 3 | 1 1 1 . Scrap Searched 1 | . . 1 . Spaces Dug . | . . . . Terrain Destroyed 3 | . 3 . . Melee . | . . . . Projectile . | . . . . AOE 3 | . 3 . . Terrain Rammed . | . . . . Walls Destroyed . | . . . . Machines Disabled . | . . . . Actions | -11 -10 -10 -10 --------- Run | Yrd Mat Min Sub Total 1747 | 51 333 737 626 Wait 773 | . 97 641 35 Move 870 | 43 208 96 523 Hop . | . . . . Pick Up 6 | . 4 . 2 Fast Attach 13 | 7 2 . 4 Attach 4 | . 1 . 3 Detach 1 | 1 . . . Swap 4 | . 2 . 2 Drop 1 | . . . 1 Fire 55 | . 19 . 36 Melee 20 | . . . 20 Ram . | . . . . Kick . | . . . . Crush . | . . . . Escape Stasis . | . . . . Rewire . | . . . . Trap . | . . . . Miscellaneous . | . . . . Route ------- -11/Scrapyard -10/Materials (discovered 3 exits: [*Mat x2] / [*Min]) -10/Mines -10/Subcaves (discovered 1 exit: [*Rec]) History --------- Turn | Location | Event 9 | -11/Scrapyard | Discovered new exit (range 15) 76 | -11/Scrapyard | Entered Materials 221 | -10/Materials | Discovered new exit (range 4) 313 | -10/Materials | Build established: Mutant 544 | -10/Materials | Discovered new exit (range 9) 552 | -10/Materials | Discovered new exit (range 11) 574 | -10/Materials | Entered Mines 585 | -10/Mines | Assembled infested the area 611 | -10/Mines | Discovered new exit (range 5) 1369 | -10/Mines | Entered Subcaves 1782 | -10/Subcaves | Shifting Twisted Machinery released Spk. Treads 1792 | -10/Subcaves | Shifting Twisted Machinery released Mak. Light Armor Plating 2041 | -10/Subcaves | Core integrity fell below 50% 2405 | -10/Subcaves | Discovered new exit (range 16) 2522 | -10/Subcaves | Core integrity fell below 20% 2527 | -10/Subcaves | Destroyed by BJ-GOR(R) with Subdweller Laser Last Messages --------------- 02360_ Acquired 18 matter. 02363_ Flight Unit fries itself beyond repair. 02368_ Assault Rifle destroyed. 02369_ Subatomizers dissect the Sub. Monowheel. 02370_ Lgt. Assault Rifle fries itself beyond repair. 02371_ Flight Unit fries itself beyond repair. 02374_ Lgt. Treads destroyed. 02378_ Autobeam Turret destroyed. 02380_ Subatomizers dissect the Sub. Monowheel. 02402_ Autobeam Turret destroyed. 02404_ Subatomizers dissect the Sub. Monowheel. 02405_ EXIT=FOUND 02414_ Subatomizers dissect the Sub. Monowheel. 02418_ Acquired 36 matter. 02423_ Acquired Sub. Monowheel. 02424_ Subatomizers dissect the Sub. Optics. 02452_ Acquired 10 matter. 02523_ Spk. Treads destroyed. 02523_ Sub. Monowheel destroyed. Map ----- +----------------------------------------------------+ | ?????????????????????????????????????????????????? | | ?????????????????????????????????????????????????? | | ?????????????????????????????????????????????????? | | ?????????????????????????????????????????????????? | | ?????????????????????????????????????????????????? | | ?????????????????????????????????????????????????? | | ?????????????????????????????????????????????????? | | ?????????????????????????????????????????????????? | | ?????????????????????????????????????????????????? | | ?????????????????????????????????????????????????? | | ?????????????????????? ??????????????????????????? | | ?????????????????????? ?????????????????????????? | | ????????????????????# ?????????????????????????? | | ?????????????????#? #?????????????????????????? | | ????????????????? " #?????????????????#####???? | | ?????????????????? """ ##???????????????## ###?? | | ???????????????????"""" ##???????????#### #?? | | ???????????????????#"""" #??????????## #??? | | ???????????????????#"""" #?????????##% #??? | | ???????????????????# #??????????## ##% ##??? | | ???????????? ??????# ##?????????## #####???? | | ?????????? #### ##?????????# #####???? | | ???????????? " ""% #?????????# ##??? | | ?????????????## %""""" ##????????## #??? | | ??????????????## "" #####??#### ##??? | | ???????????????# R@ #### #???? | | ???????????# % R ## #???? | | ???????????# ##### ### #???? | | ???????????# #????## ## #??? | | ??????????? #??????# ### #?? | | ??????????? ???????# # # #?# ##?? | | ???????????? ????????# ######## ##?##??? | | ??????????????????????## ##??????# ##????? | | ???????????????????????###???????# #????? | | ?????????????????????????????????# #????? | | ??????????????????????????######?## ###????? | | ??????????????????????????#""" "## ### #?????? | | ??????????????????????????#" # ### ###???? | | ??????????????????????????#" ## % ###?? | | ?????????????????????????##"" &&!# #?? | | ?????????????????????????#< % %### %##?? | | ?????????????????????????##"" & #??? | | ??????????????????????????#" % # #??? | | ??????????????????????????#" % ## % ##??? | | ??????????????????????????#""" ?## % % ##???? | | ??????????????????????????######## ## ##????? | | ???????????????????????????###### ##### #?????? | | ???????????????????????????# #???##% #?????? | | ???????????????????????????# % #????# #?????? | | ???????????????????????????# #????# #?????? | +----------------------------------------------------+ Best States ------------- Heat Dissipation 25 Energy Generation 15 Energy Capacity 250 Matter Stores 300 Matter Capacity 300 Sight Range 18 Terrain Scan Density 10 Armor Coverage 100 Evasion (%) 40 Recoil Reduction 2 Item Schematics ----------------- None Robot Schematics ------------------ None Fabricated ------------ Nothing Repaired ---------- Nothing Studied --------- None Alien Tech Used ----------------- None Achievements -------------- None Challenges ------------ None Game ------ Seed CoilScrapJammer Manual? 0 Play Time 00:09:57 Cumulative 474.7 hours Start 2025.10.23 @ 16:33:28 End 2025.10.23 @ 16:40:02 Sessions 1 Manual Loads 0 Difficulty Rogue Special Mode None Game No. 804 Rogue 649 Adventurer 148 Explorer 7 Win Type - Total 23 Types 18/1/3/1/0/0/0/0/0/0 Lore% 64 Gallery% 76 Achievement% 49 Wizard Run 0 Options --------- Layout 1 ASCII 0 Keyboard 0 Movement Numpad Keybinds 0 Fullscreen 2 Font 24/Smallcaps Map View 50x35 Zoom Use 0% Tactical HUD 1 Map Filters NONE Filters NONE Steam 1 RUN: 757228b7-ca23-4fb8-b0b2-e23ae241f2dc